[Event "*** SCC Grand Prix: Titled Tuesday Blitz"]
[Site "Chess.com"]
[Date "2020.06.23"]
[Round "8"]
[White "Gerasimenyuk_Miha"]
[Black "SiddharthGMJagadeesh"]
[Result "0-1"]
[WhiteElo "2318"]
[BlackElo "2436"]
[TimeControl "180+1"]
[EndTime "11:36:09 PDT"]
[Termination "SiddharthGMJagadeesh won by resignation"]

1. d4 {[%clk 0:03:00.9]} 1... Nf6 {[%clk 0:02:59.7]} 2. Nf3 {[%clk 0:02:58.4]}
2... g6 {[%clk 0:02:59.5]} 3. Bg5 {[%clk 0:02:58.3]} 3... Bg7 {[%clk 0:02:59.2]}
4. Nbd2 {[%clk 0:02:57.6]} 4... O-O {[%clk 0:02:58.3]} 5. e3 {[%clk 0:02:57.9]}
5... d5 {[%clk 0:02:57.9]} 6. Bd3 {[%clk 0:02:56.5]} 6... c5 {[%clk 0:02:54.4]}
7. c3 {[%clk 0:02:56]} 7... Nc6 {[%clk 0:02:54.1]} 8. h4 {[%clk 0:02:56.4]} 8...
Bg4 {[%clk 0:02:48.1]} 9. Bxf6 {[%clk 0:02:54.7]} 9... Bxf6 {[%clk 0:02:41.4]}
10. h5 {[%clk 0:02:54.9]} 10... e5 {[%clk 0:01:48.4]} 11. dxe5 {[%clk
0:02:40.9]} 11... Nxe5 {[%clk 0:01:47.8]} 12. Be2 {[%clk 0:02:39.2]} 12... Nxf3+
{[%clk 0:01:39.5]} 13. Bxf3 {[%clk 0:02:37.2]} 13... Bf5 {[%clk 0:01:20.6]} 14.
hxg6 {[%clk 0:02:33.5]} 14... hxg6 {[%clk 0:01:04.4]} 15. Bg4 {[%clk 0:02:32.3]}
15... Bxg4 {[%clk 0:00:26.5]} 16. Qxg4 {[%clk 0:02:30.4]} 16... d4 {[%clk
0:00:26.9]} 17. O-O-O {[%clk 0:02:18.2]} 17... dxc3 {[%clk 0:00:18.3]} 18. Ne4
{[%clk 0:02:17.9]} 18... cxb2+ {[%clk 0:00:13.4]} 19. Kb1 {[%clk 0:02:18.3]}
19... Qe7 {[%clk 0:00:13]} 20. f3 {[%clk 0:02:07.6]} 20... Rfd8 {[%clk
0:00:09.7]} 21. Qf4 {[%clk 0:02:01.8]} 21... Bg7 {[%clk 0:00:09]} 22. Ng5 {[%clk
0:01:32.8]} 22... Rxd1+ {[%clk 0:00:06.3]} 23. Rxd1 {[%clk 0:01:33.7]} 23... Bf6
{[%clk 0:00:05.5]} 24. Ne4 {[%clk 0:01:27.7]} 24... Be5 {[%clk 0:00:05.6]} 25.
Qg5 {[%clk 0:01:04.5]} 25... Qxg5 {[%clk 0:00:05.4]} 26. Nxg5 {[%clk 0:01:05.4]}
26... c4 {[%clk 0:00:05]} 27. f4 {[%clk 0:01:01.1]} 27... Bf6 {[%clk 0:00:03.9]}
28. Ne4 {[%clk 0:00:58.6]} 28... Bg7 {[%clk 0:00:04.3]} 29. Nd6 {[%clk
0:00:55.5]} 29... c3 {[%clk 0:00:04.3]} 30. e4 {[%clk 0:00:53.2]} 30... Rd8
{[%clk 0:00:04.3]} 31. e5 {[%clk 0:00:50.7]} 31... Bf8 {[%clk 0:00:04.7]} 32.
Kc2 {[%clk 0:00:47.2]} 32... Bxd6 {[%clk 0:00:05.1]} 33. exd6 {[%clk 0:00:47.5]}
33... Kg7 {[%clk 0:00:05.1]} 34. Rd3 {[%clk 0:00:42.1]} 34... Kf6 {[%clk
0:00:05.1]} 35. Rxc3 {[%clk 0:00:32.2]} 35... Rxd6 {[%clk 0:00:05.3]} 36. Kxb2
{[%clk 0:00:32.2]} 36... Rb6+ {[%clk 0:00:05.8]} 37. Ka3 {[%clk 0:00:29.4]}
37... Kf5 {[%clk 0:00:06.2]} 38. g3 {[%clk 0:00:28.8]} 38... f6 {[%clk
0:00:06.7]} 39. Re3 {[%clk 0:00:22.5]} 39... Kg4 {[%clk 0:00:06.7]} 40. Ka4
{[%clk 0:00:21.7]} 40... Rb1 {[%clk 0:00:06.7]} 41. Re6 {[%clk 0:00:20.8]} 41...
Kf5 {[%clk 0:00:06.2]} 42. Re7 {[%clk 0:00:20.5]} 42... Rg1 {[%clk 0:00:05.7]}
43. Rxb7 {[%clk 0:00:19.6]} 43... Rxg3 {[%clk 0:00:06.3]} 44. Rxa7 {[%clk
0:00:19.6]} 44... Rf3 {[%clk 0:00:07]} 45. Rg7 {[%clk 0:00:19.3]} 45... Rxf4+
{[%clk 0:00:07.3]} 46. Kb5 {[%clk 0:00:19.6]} 46... g5 {[%clk 0:00:07.1]} 47. a4
{[%clk 0:00:19.7]} 47... Rf1 {[%clk 0:00:07.3]} 48. a5 {[%clk 0:00:19.8]} 48...
Rb1+ {[%clk 0:00:07.6]} 49. Kc4 {[%clk 0:00:17.9]} 49... Ra1 {[%clk 0:00:07.9]}
50. Kb4 {[%clk 0:00:18]} 50... g4 {[%clk 0:00:08.3]} 51. Kb5 {[%clk 0:00:18.4]}
51... Kf4 {[%clk 0:00:08.5]} 52. a6 {[%clk 0:00:19.3]} 52... f5 {[%clk
0:00:07.6]} 53. a7 {[%clk 0:00:20.2]} 53... Kf3 {[%clk 0:00:07.4]} 54. Kc4
{[%clk 0:00:20.3]} 54... f4 {[%clk 0:00:07.6]} 55. Kd3 {[%clk 0:00:20.3]} 55...
g3 {[%clk 0:00:08.1]} 56. Kd2 {[%clk 0:00:19.8]} 56... g2 {[%clk 0:00:08.5]} 57.
Kd3 {[%clk 0:00:19.5]} 57... Rxa7 {[%clk 0:00:09]} 58. Rxa7 {[%clk 0:00:17.6]}
58... g1=Q {[%clk 0:00:09]} 59. Ra3 {[%clk 0:00:17.2]} 59... Qe3+ {[%clk
0:00:09]} 0-1

[Event "*** SCC Grand Prix: Titled Tuesday Blitz"]
[Site "Chess.com"]
[Date "2020.06.23"]
[Round "8"]
[White "IM_Tissir"]
[Black "bait_or_mate"]
[Result "0-1"]
[WhiteElo "2467"]
[BlackElo "2625"]
[TimeControl "180+1"]
[EndTime "11:36:12 PDT"]
[Termination "bait_or_mate won by resignation"]

1. e4 {[%clk 0:02:43]} 1... c5 {[%clk 0:02:59.7]} 2. Nc3 {[%clk 0:02:42.1]} 2...
Nc6 {[%clk 0:02:59.6]} 3. Bb5 {[%clk 0:02:41.9]} 3... d6 {[%clk 0:02:57.8]} 4.
Bxc6+ {[%clk 0:02:41.5]} 4... bxc6 {[%clk 0:02:58.7]} 5. d3 {[%clk 0:02:42.1]}
5... e5 {[%clk 0:02:57.7]} 6. f4 {[%clk 0:02:42.1]} 6... exf4 {[%clk 0:02:55.1]}
7. Bxf4 {[%clk 0:02:41.1]} 7... Be7 {[%clk 0:02:55.7]} 8. Nf3 {[%clk 0:02:40.3]}
8... Nf6 {[%clk 0:02:55.7]} 9. O-O {[%clk 0:02:39.1]} 9... O-O {[%clk
0:02:56.1]} 10. Qd2 {[%clk 0:02:34.1]} 10... d5 {[%clk 0:02:50.5]} 11. Ne5
{[%clk 0:02:19]} 11... Bb7 {[%clk 0:02:45.6]} 12. Rae1 {[%clk 0:02:12.5]} 12...
Nh5 {[%clk 0:02:33.8]} 13. Nf3 {[%clk 0:01:53.6]} 13... Nxf4 {[%clk 0:02:23.5]}
14. Qxf4 {[%clk 0:01:54.5]} 14... Rb8 {[%clk 0:00:40.8]} 15. b3 {[%clk
0:01:49.2]} 15... Qd6 {[%clk 0:00:27.7]} 16. e5 {[%clk 0:01:35]} 16... Qg6
{[%clk 0:00:26]} 17. Na4 {[%clk 0:01:32]} 17... Bc8 {[%clk 0:00:25.3]} 18. Qd2
{[%clk 0:01:23.8]} 18... Rb4 {[%clk 0:00:22.1]} 19. c4 {[%clk 0:01:23]} 19...
Bf5 {[%clk 0:00:17.2]} 20. Nb2 {[%clk 0:01:19.7]} 20... Rd8 {[%clk 0:00:16.3]}
21. Qe2 {[%clk 0:01:06.4]} 21... a5 {[%clk 0:00:12.9]} 22. Rd1 {[%clk
0:01:01.9]} 22... Rbb8 {[%clk 0:00:12.1]} 23. Qf2 {[%clk 0:00:45.7]} 23... Bg4
{[%clk 0:00:09.4]} 24. Kh1 {[%clk 0:00:40.3]} 24... h6 {[%clk 0:00:09.5]} 25.
Rde1 {[%clk 0:00:37.6]} 25... Be6 {[%clk 0:00:09.5]} 26. Rd1 {[%clk 0:00:27.7]}
26... Qg4 {[%clk 0:00:09.5]} 27. Na4 {[%clk 0:00:26.6]} 27... d4 {[%clk
0:00:03.6]} 28. Nd2 {[%clk 0:00:23.9]} 28... Qg6 {[%clk 0:00:03.6]} 29. Ne4
{[%clk 0:00:23.4]} 29... Bg5 {[%clk 0:00:02.3]} 30. Naxc5 {[%clk 0:00:19.9]}
30... Be3 {[%clk 0:00:02.7]} 31. Qg3 {[%clk 0:00:19.5]} 31... Bg4 {[%clk
0:00:03.2]} 32. Rde1 {[%clk 0:00:18.5]} 32... h5 {[%clk 0:00:03.7]} 33. h3
{[%clk 0:00:17.8]} 33... Bf5 {[%clk 0:00:04.3]} 34. Qxg6 {[%clk 0:00:16.4]}
34... Bxg6 {[%clk 0:00:05.2]} 35. Rf3 {[%clk 0:00:15.4]} 35... Re8 {[%clk
0:00:05.6]} 36. Rfxe3 {[%clk 0:00:09.1]} 36... dxe3 {[%clk 0:00:06.5]} 37. Rxe3
{[%clk 0:00:09.7]} 37... Rxe5 {[%clk 0:00:05.8]} 38. Kg1 {[%clk 0:00:10.1]}
38... Rbe8 {[%clk 0:00:04.2]} 39. Rf3 {[%clk 0:00:08.1]} 39... f5 {[%clk
0:00:04.3]} 40. Nd7 {[%clk 0:00:07.5]} 40... fxe4 {[%clk 0:00:02.8]} 41. dxe4
{[%clk 0:00:07.1]} 41... Rxe4 {[%clk 0:00:03]} 42. Rg3 {[%clk 0:00:06.6]} 42...
Re1+ {[%clk 0:00:03.3]} 43. Kh2 {[%clk 0:00:06.5]} 43... Kh7 {[%clk 0:00:04]}
44. Nc5 {[%clk 0:00:06.9]} 44... R8e3 {[%clk 0:00:04]} 45. Rxe3 {[%clk
0:00:06.3]} 45... Rxe3 {[%clk 0:00:04.9]} 46. a3 {[%clk 0:00:06.5]} 46... Re2
{[%clk 0:00:04.3]} 47. b4 {[%clk 0:00:07.4]} 47... axb4 {[%clk 0:00:04.1]} 48.
axb4 {[%clk 0:00:06.9]} 48... Rc2 {[%clk 0:00:04.7]} 49. b5 {[%clk 0:00:06.9]}
49... cxb5 {[%clk 0:00:05.2]} 50. cxb5 {[%clk 0:00:06.6]} 50... Rxc5 {[%clk
0:00:06.1]} 51. h4 {[%clk 0:00:04.9]} 51... Rxb5 {[%clk 0:00:07]} 0-1

[Event "*** SCC Grand Prix: Titled Tuesday Blitz"]
[Site "Chess.com"]
[Date "2020.06.23"]
[Round "8"]
[White "queen_iryna"]
[Black "Yoshikrov"]
[Result "1/2-1/2"]
[WhiteElo "2232"]
[BlackElo "2025"]
[TimeControl "180+1"]
[EndTime "11:36:12 PDT"]
[Termination "Game drawn - insufficient material"]

1. d4 {[%clk 0:03:00.9]} 1... Nf6 {[%clk 0:02:59.9]} 2. Bg5 {[%clk 0:03:00.4]}
2... d5 {[%clk 0:02:54.6]} 3. Nc3 {[%clk 0:02:59]} 3... g6 {[%clk 0:02:51]} 4.
Qd2 {[%clk 0:02:57.7]} 4... h6 {[%clk 0:02:42.5]} 5. Bf4 {[%clk 0:02:56.7]} 5...
Bg7 {[%clk 0:02:42]} 6. O-O-O {[%clk 0:02:55.8]} 6... Nc6 {[%clk 0:02:26.2]} 7.
f3 {[%clk 0:02:34.1]} 7... a6 {[%clk 0:02:23.9]} 8. g4 {[%clk 0:02:26.5]} 8...
Be6 {[%clk 0:02:06.7]} 9. e3 {[%clk 0:02:25.3]} 9... Qd7 {[%clk 0:02:04.9]} 10.
Bd3 {[%clk 0:02:25.4]} 10... O-O-O {[%clk 0:02:02.9]} 11. Nge2 {[%clk
0:02:24.4]} 11... g5 {[%clk 0:01:56.7]} 12. Bg3 {[%clk 0:02:22.1]} 12... Nb4
{[%clk 0:01:48.8]} 13. h4 {[%clk 0:02:14.6]} 13... Nxd3+ {[%clk 0:01:44.4]} 14.
Qxd3 {[%clk 0:02:15.5]} 14... Qc6 {[%clk 0:01:35.5]} 15. Kb1 {[%clk 0:02:07.5]}
15... Bd7 {[%clk 0:01:11.9]} 16. Nc1 {[%clk 0:02:05.3]} 16... e6 {[%clk
0:01:11.9]} 17. Nb3 {[%clk 0:02:03.3]} 17... Qc4 {[%clk 0:01:07.7]} 18. Nc5
{[%clk 0:01:52.7]} 18... Qxd3 {[%clk 0:01:05.9]} 19. Nxd3 {[%clk 0:01:35.3]}
19... Bc6 {[%clk 0:01:02.6]} 20. Ne5 {[%clk 0:01:34.9]} 20... Rdf8 {[%clk
0:00:58.3]} 21. Rh2 {[%clk 0:01:32.8]} 21... Nd7 {[%clk 0:00:57.4]} 22. Nxc6
{[%clk 0:01:31.5]} 22... bxc6 {[%clk 0:00:58.2]} 23. Rdh1 {[%clk 0:01:28.9]}
23... f5 {[%clk 0:00:49.5]} 24. hxg5 {[%clk 0:01:28]} 24... hxg5 {[%clk
0:00:49.3]} 25. Rxh8 {[%clk 0:01:27.8]} 25... Rxh8 {[%clk 0:00:49.6]} 26. Rxh8+
{[%clk 0:01:28.2]} 26... Bxh8 {[%clk 0:00:50.5]} 27. gxf5 {[%clk 0:01:14.8]}
27... exf5 {[%clk 0:00:50.4]} 28. Kc1 {[%clk 0:01:15.7]} 28... Nb6 {[%clk
0:00:50.1]} 29. b3 {[%clk 0:01:15]} 29... Nd7 {[%clk 0:00:46]} 30. Kd2 {[%clk
0:01:14.5]} 30... Bf6 {[%clk 0:00:41.3]} 31. Ne2 {[%clk 0:01:14.1]} 31... Be7
{[%clk 0:00:40.6]} 32. Nc1 {[%clk 0:01:12.5]} 32... Bb4+ {[%clk 0:00:39.6]} 33.
c3 {[%clk 0:01:09.7]} 33... Be7 {[%clk 0:00:39.5]} 34. Nd3 {[%clk 0:01:09.6]}
34... Bd6 {[%clk 0:00:32.5]} 35. Bxd6 {[%clk 0:01:02.2]} 35... cxd6 {[%clk
0:00:33.4]} 36. Nb4 {[%clk 0:01:02.2]} 36... Kb7 {[%clk 0:00:33.2]} 37. Ke2
{[%clk 0:01:00.9]} 37... Nf6 {[%clk 0:00:31.7]} 38. Nd3 {[%clk 0:00:55.4]} 38...
Nh5 {[%clk 0:00:29.9]} 39. Kf2 {[%clk 0:00:52.8]} 39... a5 {[%clk 0:00:28.4]}
40. c4 {[%clk 0:00:49.5]} 40... dxc4 {[%clk 0:00:28.2]} 41. bxc4 {[%clk
0:00:50.4]} 41... Kb6 {[%clk 0:00:26.1]} 42. c5+ {[%clk 0:00:50.2]} 42... dxc5
{[%clk 0:00:25.8]} 43. Nxc5 {[%clk 0:00:51.1]} 43... Kb5 {[%clk 0:00:25.8]} 44.
Ne6 {[%clk 0:00:49.3]} 44... g4 {[%clk 0:00:24.8]} 45. Nc5 {[%clk 0:00:46]}
45... g3+ {[%clk 0:00:21.9]} 46. Kg2 {[%clk 0:00:45.7]} 46... Kc4 {[%clk
0:00:22.3]} 47. Nb7 {[%clk 0:00:43.9]} 47... a4 {[%clk 0:00:20.7]} 48. Nd8
{[%clk 0:00:43.3]} 48... c5 {[%clk 0:00:20.2]} 49. dxc5 {[%clk 0:00:41.4]} 49...
Kxc5 {[%clk 0:00:20.6]} 50. Ne6+ {[%clk 0:00:41.5]} 50... Kc4 {[%clk 0:00:21.1]}
51. f4 {[%clk 0:00:36.7]} 51... Kc3 {[%clk 0:00:20.3]} 52. Nd4 {[%clk
0:00:34.9]} 52... Kb2 {[%clk 0:00:18]} 53. Nxf5 {[%clk 0:00:30.8]} 53... Kxa2
{[%clk 0:00:18.3]} 54. Nd4 {[%clk 0:00:30.9]} 54... Kb2 {[%clk 0:00:18.3]} 55.
Nb5 {[%clk 0:00:30.4]} 55... a3 {[%clk 0:00:18.4]} 56. Nxa3 {[%clk 0:00:29.9]}
56... Kxa3 {[%clk 0:00:18.8]} 57. f5 {[%clk 0:00:29.6]} 57... Kb4 {[%clk
0:00:18.3]} 58. e4 {[%clk 0:00:29.9]} 58... Kc5 {[%clk 0:00:18.4]} 59. e5 {[%clk
0:00:30.2]} 59... Kd5 {[%clk 0:00:18.3]} 60. f6 {[%clk 0:00:30.5]} 60... Ke6
{[%clk 0:00:15.5]} 61. Kf3 {[%clk 0:00:30.7]} 61... Nxf6 {[%clk 0:00:14.6]} 62.
exf6 {[%clk 0:00:30.2]} 62... Kxf6 {[%clk 0:00:15.1]} 63. Kxg3 {[%clk
0:00:31.1]} 1/2-1/2

[Event "*** SCC Grand Prix: Titled Tuesday Blitz"]
[Site "Chess.com"]
[Date "2020.06.23"]
[Round "8"]
[White "Escanor89"]
[Black "Godzillator"]
[Result "0-1"]
[WhiteElo "2550"]
[BlackElo "2413"]
[TimeControl "180+1"]
[EndTime "11:36:20 PDT"]
[Termination "Godzillator won on time"]

1. c4 {[%clk 0:03:00.9]} 1... c6 {[%clk 0:02:59.8]} 2. e4 {[%clk 0:02:59.8]}
2... d5 {[%clk 0:03:00.4]} 3. exd5 {[%clk 0:03:00.5]} 3... cxd5 {[%clk
0:03:00.6]} 4. d4 {[%clk 0:03:01]} 4... Nf6 {[%clk 0:03:00.6]} 5. Nc3 {[%clk
0:03:01.1]} 5... e6 {[%clk 0:03:00.9]} 6. Nf3 {[%clk 0:03:00.7]} 6... Bb4 {[%clk
0:03:00.7]} 7. Bd3 {[%clk 0:03:00.1]} 7... dxc4 {[%clk 0:03:00.6]} 8. Bxc4
{[%clk 0:03:00.1]} 8... O-O {[%clk 0:03:01.1]} 9. O-O {[%clk 0:02:59.4]} 9...
Nc6 {[%clk 0:03:01.6]} 10. Re1 {[%clk 0:02:55]} 10... b6 {[%clk 0:03:00.9]} 11.
a3 {[%clk 0:02:50]} 11... Be7 {[%clk 0:02:55.5]} 12. Bg5 {[%clk 0:02:38.5]}
12... Bb7 {[%clk 0:02:53.7]} 13. Qd3 {[%clk 0:02:30.4]} 13... Rc8 {[%clk
0:02:52.4]} 14. Rad1 {[%clk 0:02:27.3]} 14... Nd5 {[%clk 0:02:45.9]} 15. Bxe7
{[%clk 0:02:09.9]} 15... Ncxe7 {[%clk 0:02:45.7]} 16. Ne5 {[%clk 0:02:07.2]}
16... Nxc3 {[%clk 0:02:43.2]} 17. bxc3 {[%clk 0:02:06.5]} 17... Ng6 {[%clk
0:02:42.2]} 18. Nxg6 {[%clk 0:01:48.1]} 18... hxg6 {[%clk 0:02:41.6]} 19. Bb3
{[%clk 0:01:45.7]} 19... Qg5 {[%clk 0:02:39.5]} 20. f3 {[%clk 0:01:39.2]} 20...
Rfd8 {[%clk 0:02:37.8]} 21. Re5 {[%clk 0:01:23.7]} 21... Qf4 {[%clk 0:02:13.3]}
22. Rde1 {[%clk 0:01:11.9]} 22... Rc7 {[%clk 0:02:09.6]} 23. Qe3 {[%clk
0:00:53]} 23... Qxe3+ {[%clk 0:02:07.8]} 24. R5xe3 {[%clk 0:00:53.2]} 24... Rdc8
{[%clk 0:02:07.6]} 25. Rc1 {[%clk 0:00:53.5]} 25... Ba6 {[%clk 0:02:05.2]} 26.
Kf2 {[%clk 0:00:52.9]} 26... Bc4 {[%clk 0:02:05.1]} 27. Bd1 {[%clk 0:00:50.7]}
27... Kf8 {[%clk 0:02:04.5]} 28. Ke1 {[%clk 0:00:50.8]} 28... Rd8 {[%clk
0:02:04.2]} 29. Bc2 {[%clk 0:00:39.7]} 29... Rd5 {[%clk 0:02:01.5]} 30. Rb1
{[%clk 0:00:32.8]} 30... Ra5 {[%clk 0:02:00]} 31. a4 {[%clk 0:00:32.8]} 31...
Ke7 {[%clk 0:01:51.5]} 32. Kd2 {[%clk 0:00:32.3]} 32... Rd7 {[%clk 0:01:47.1]}
33. f4 {[%clk 0:00:30.3]} 33... Kf6 {[%clk 0:01:43.8]} 34. Rb4 {[%clk
0:00:29.6]} 34... Bd5 {[%clk 0:01:41.1]} 35. g3 {[%clk 0:00:29.3]} 35... Bc6
{[%clk 0:01:39.8]} 36. h4 {[%clk 0:00:28.7]} 36... Ke7 {[%clk 0:01:30.4]} 37.
Re5 {[%clk 0:00:27.7]} 37... Rxe5 {[%clk 0:01:28.8]} 38. fxe5 {[%clk 0:00:27.6]}
38... Rd8 {[%clk 0:01:23.5]} 39. Ke3 {[%clk 0:00:27.3]} 39... Rh8 {[%clk
0:01:20]} 40. Be4 {[%clk 0:00:21.1]} 40... Kd7 {[%clk 0:01:16.3]} 41. Bd3 {[%clk
0:00:18.9]} 41... Kc7 {[%clk 0:01:09]} 42. Bc2 {[%clk 0:00:19.1]} 42... Rh6
{[%clk 0:01:02]} 43. Rb1 {[%clk 0:00:18.6]} 43... f5 {[%clk 0:00:56.9]} 44. Rf1
{[%clk 0:00:18.2]} 44... Bd5 {[%clk 0:00:51.3]} 45. Bd3 {[%clk 0:00:17.2]} 45...
Rh8 {[%clk 0:00:49.8]} 46. Ra1 {[%clk 0:00:14.9]} 46... a5 {[%clk 0:00:48.1]}
47. Bb5 {[%clk 0:00:14.3]} 47... g5 {[%clk 0:00:43.4]} 48. hxg5 {[%clk
0:00:13.7]} 48... Rh2 {[%clk 0:00:43.4]} 49. c4 {[%clk 0:00:12.2]} 49... Be4
{[%clk 0:00:41.8]} 50. Rd1 {[%clk 0:00:09.8]} 50... Rg2 {[%clk 0:00:41.8]} 51.
d5 {[%clk 0:00:08.9]} 51... Rxg3+ {[%clk 0:00:41.9]} 52. Kf2 {[%clk 0:00:09.1]}
52... Rf3+ {[%clk 0:00:41.8]} 53. Ke2 {[%clk 0:00:09]} 53... Ra3 {[%clk
0:00:36.4]} 54. d6+ {[%clk 0:00:09.2]} 54... Kd8 {[%clk 0:00:36.2]} 55. Kf2
{[%clk 0:00:09.4]} 55... Rf3+ {[%clk 0:00:33.3]} 56. Ke2 {[%clk 0:00:09.4]}
56... Rg3 {[%clk 0:00:33.3]} 57. Kd2 {[%clk 0:00:09.5]} 57... Rxg5 {[%clk
0:00:32.1]} 58. c5 {[%clk 0:00:09.7]} 58... bxc5 {[%clk 0:00:31.6]} 59. Rc1
{[%clk 0:00:10]} 59... Rg2+ {[%clk 0:00:29.7]} 60. Ke3 {[%clk 0:00:06.6]} 60...
Rc2 {[%clk 0:00:29.4]} 61. Rg1 {[%clk 0:00:04]} 61... Rc3+ {[%clk 0:00:26.8]}
62. Kd2 {[%clk 0:00:03.6]} 62... Rc2+ {[%clk 0:00:25.9]} 63. Ke3 {[%clk
0:00:03.8]} 63... Rg2 {[%clk 0:00:25.8]} 64. Rc1 {[%clk 0:00:03.2]} 64... Bc2
{[%clk 0:00:21.9]} 0-1

[Event "*** SCC Grand Prix: Titled Tuesday Blitz"]
[Site "Chess.com"]
[Date "2020.06.23"]
[Round "8"]
[White "hansen"]
[Black "mbachez"]
[Result "1-0"]
[WhiteElo "2973"]
[BlackElo "2454"]
[TimeControl "180+1"]
[EndTime "11:36:21 PDT"]
[Termination "hansen won by resignation"]

1. e4 {[%clk 0:03:00.9]} 1... c6 {[%clk 0:02:58.5]} 2. Nc3 {[%clk 0:03:00.9]}
2... d5 {[%clk 0:02:58.6]} 3. Nf3 {[%clk 0:03:01.8]} 3... Nf6 {[%clk 0:02:57.3]}
4. Qe2 {[%clk 0:03:01.6]} 4... Bg4 {[%clk 0:02:53.9]} 5. h3 {[%clk 0:03:01.7]}
5... Bxf3 {[%clk 0:02:53.4]} 6. Qxf3 {[%clk 0:03:02.6]} 6... e6 {[%clk
0:02:53.7]} 7. Be2 {[%clk 0:03:02.8]} 7... Nbd7 {[%clk 0:02:50]} 8. d4 {[%clk
0:03:00]} 8... dxe4 {[%clk 0:02:49.4]} 9. Nxe4 {[%clk 0:03:00.1]} 9... Nxe4
{[%clk 0:02:49.1]} 10. Qxe4 {[%clk 0:03:01]} 10... Bd6 {[%clk 0:02:48.5]} 11.
O-O {[%clk 0:02:59.7]} 11... O-O {[%clk 0:02:48.6]} 12. Rd1 {[%clk 0:02:59.5]}
12... Qa5 {[%clk 0:02:47.3]} 13. c3 {[%clk 0:02:57.7]} 13... Nf6 {[%clk
0:02:45.7]} 14. Qc2 {[%clk 0:02:56.5]} 14... Rac8 {[%clk 0:02:43.5]} 15. Bf3
{[%clk 0:02:56.2]} 15... e5 {[%clk 0:02:27.9]} 16. dxe5 {[%clk 0:02:56]} 16...
Qxe5 {[%clk 0:02:27.4]} 17. g3 {[%clk 0:02:56.6]} 17... Bc5 {[%clk 0:02:21.9]}
18. Bf4 {[%clk 0:02:55]} 18... Qe6 {[%clk 0:02:20.1]} 19. Kg2 {[%clk 0:02:55.1]}
19... Rfe8 {[%clk 0:02:15.8]} 20. a4 {[%clk 0:02:53.2]} 20... a5 {[%clk
0:02:13.6]} 21. Rd2 {[%clk 0:02:51.1]} 21... h6 {[%clk 0:02:07.5]} 22. Rad1
{[%clk 0:02:48.4]} 22... Bb6 {[%clk 0:01:50.5]} 23. Rd6 {[%clk 0:02:26.8]} 23...
Qe7 {[%clk 0:01:43.9]} 24. Qf5 {[%clk 0:02:27.4]} 24... Rcd8 {[%clk 0:01:24.7]}
25. b4 {[%clk 0:02:26.4]} 25... Bc7 {[%clk 0:01:17.6]} 26. Rxd8 {[%clk
0:02:22.9]} 26... Rxd8 {[%clk 0:01:17]} 27. Rxd8+ {[%clk 0:02:16.3]} 27... Qxd8
{[%clk 0:01:14.6]} 28. Bxc7 {[%clk 0:02:13.9]} 28... Qxc7 {[%clk 0:01:14.7]} 29.
Qxa5 {[%clk 0:02:09.5]} 29... Qxa5 {[%clk 0:00:46]} 30. bxa5 {[%clk 0:02:09.5]}
30... Nd7 {[%clk 0:00:46.5]} 31. a6 {[%clk 0:02:02.4]} 31... bxa6 {[%clk
0:00:46.5]} 32. Bxc6 {[%clk 0:02:02.9]} 32... Nc5 {[%clk 0:00:46]} 33. a5 {[%clk
0:01:41.9]} 33... Kf8 {[%clk 0:00:45]} 34. Kf3 {[%clk 0:01:33.4]} 34... Ke7
{[%clk 0:00:45]} 35. Ke3 {[%clk 0:01:33.5]} 35... Kd6 {[%clk 0:00:45]} 36. Bf3
{[%clk 0:01:32.7]} 36... Nb3 {[%clk 0:00:26.7]} 37. Be2 {[%clk 0:01:32.5]} 37...
Nc5 {[%clk 0:00:25.6]} 38. Bc4 {[%clk 0:01:28.8]} 38... f6 {[%clk 0:00:23.5]}
39. Kf4 {[%clk 0:01:27.9]} 39... Ke7 {[%clk 0:00:20.6]} 40. Kf5 {[%clk
0:01:27.1]} 40... Nb7 {[%clk 0:00:18]} 41. Bxa6 {[%clk 0:01:25.7]} 41... Nxa5
{[%clk 0:00:18.4]} 42. h4 {[%clk 0:01:09.8]} 42... Nb3 {[%clk 0:00:17.3]} 43. h5
{[%clk 0:01:09.9]} 43... Kf8 {[%clk 0:00:16.7]} 44. Bc4 {[%clk 0:01:05.7]} 44...
Nc5 {[%clk 0:00:16.6]} 45. Kf4 {[%clk 0:00:56.5]} 45... Ke7 {[%clk 0:00:16.9]}
46. Ke3 {[%clk 0:00:54.4]} 46... Kd6 {[%clk 0:00:17.2]} 47. Kd4 {[%clk
0:00:54.1]} 47... Nd7 {[%clk 0:00:17.5]} 48. Bb3 {[%clk 0:00:52.4]} 48... Nc5
{[%clk 0:00:17.4]} 49. Ba2 {[%clk 0:00:47.3]} 49... Nd7 {[%clk 0:00:17.3]} 50.
Bc4 {[%clk 0:00:36.2]} 50... Nc5 {[%clk 0:00:17.6]} 51. Bb5 {[%clk 0:00:36.8]}
51... Ne6+ {[%clk 0:00:17.2]} 52. Ke4 {[%clk 0:00:33.8]} 52... Nc5+ {[%clk
0:00:17.2]} 53. Kf5 {[%clk 0:00:33.6]} 53... Ke7 {[%clk 0:00:17.6]} 54. Bc6
{[%clk 0:00:21.6]} 54... Kd6 {[%clk 0:00:15.3]} 55. Kg6 {[%clk 0:00:12.6]} 55...
Kxc6 {[%clk 0:00:15.5]} 56. Kxg7 {[%clk 0:00:13]} 56... Ne4 {[%clk 0:00:15.8]}
57. Kxh6 {[%clk 0:00:11.9]} 57... Nxf2 {[%clk 0:00:16.2]} 58. Kg6 {[%clk
0:00:11.6]} 58... Ne4 {[%clk 0:00:16.3]} 59. h6 {[%clk 0:00:11.4]} 59... Ng5
{[%clk 0:00:15.2]} 60. h7 {[%clk 0:00:09.9]} 60... Nxh7 {[%clk 0:00:13.6]} 61.
Kxh7 {[%clk 0:00:10.8]} 61... f5 {[%clk 0:00:13.8]} 62. Kg6 {[%clk 0:00:11]}
62... Kd5 {[%clk 0:00:14.7]} 63. Kxf5 {[%clk 0:00:11]} 1-0